fUST/lending_fUST_20240912
["ID","MTS","AMOUNT","RATE_DAILY","PERIOD"]
[337847230,1726151441420,-500.0,0.00016438,2]
[337847232,1726151441430,-500.0,0.00016438,2]
[337847234,1726151441439,-500.0,0.00016438,2]
[337847236,1726151441449,-500.0,0.00016438,2]
[337847238,1726151441457,-500.0,0.00016438,2]
[337847240,1726151441468,-500.0,0.00016438,2]
[337847242,1726151441477,-500.0,0.00016438,2]
[337847244,1726151441486,-500.0,0.00016438,2]
[337847246,1726151441498,-500.0,0.00016438,2]
[337847248,1726151441508,-500.0,0.00016438,2]
[337847250,1726151441518,-501.78523145,0.00016438,2]
[337847252,1726151441528,-439.53402322,0.00016438,2]
[337847254,1726151441538,-500.0,0.00016438,2]
[337847256,1726151441547,-500.0,0.00016438,2]
[337847258,1726151441556,-500.0,0.00016438,2]
[337847260,1726151441565,-500.0,0.00016438,2]
[337847262,1726151441575,-500.0,0.00016438,2]
[337847264,1726151441584,-500.0,0.00016438,2]
[337847266,1726151441594,-500.0,0.00016438,2]
[337847268,1726151441603,-500.0,0.00016438,2]
[337847270,1726151441613,-500.0,0.00016438,2]
[337847272,1726151441624,-500.0,0.00016438,2]
[337847274,1726151441634,-500.0,0.00016438,2]
[337847276,1726151441643,-589.43,0.00016438,2]
[337847279,1726151441653,-745.12,0.00016438,2]
[337847280,1726151441662,-500.0,0.00016438,2]
[337847282,1726151441672,-505.08043448,0.00016438,2]
[337847284,1726151441682,-500.0,0.00016438,2]
[337847286,1726151441692,-500.0,0.00016438,2]
[337847288,1726151441702,-436.86837749,0.00016438,2]
[337847290,1726151441711,-500.0,0.00016438,2]
[337847293,1726151441721,-500.0,0.00016438,2]
[337847294,1726151441730,-500.0,0.00016438,2]
[337847297,1726151441741,-253.14116381,0.00016438,2]
[337847298,1726151441750,-500.0,0.00016438,2]
[337847300,1726151441760,-500.0,0.00016438,2]
[337847302,1726151441769,-500.0,0.00016438,2]
[337847304,1726151441778,-500.0,0.00016438,2]
[337847307,1726151441788,-722.75,0.00016438,2]
[337847309,1726151441798,-500.0,0.00016438,2]
[337847311,1726151441808,-500.0,0.00016438,2]
[337847313,1726151441817,-500.0,0.00016438,2]
[337847315,1726151441828,-500.0,0.00016438,2]
[337847317,1726151441838,-500.0,0.00016438,2]
[337847319,1726151441848,-568.99,0.00016438,2]
[337847321,1726151441858,-502.54879552,0.00016438,2]
[337847323,1726151441867,-500.0,0.00016438,2]
[337847325,1726151441877,-500.0,0.00016438,2]
[337847327,1726151441887,-510.46,0.00016438,2]
[337847329,1726151441897,-500.0,0.00016438,2]
[337847331,1726151441906,-500.0,0.00016438,2]
[337847333,1726151441917,-500.0,0.00016438,2]
[337847335,1726151441927,-500.0,0.00016438,2]
[337847337,1726151441937,-500.0,0.00016438,2]
[337847339,1726151441947,-500.0,0.00016438,2]
[337847341,1726151441957,-500.0,0.00016438,2]
[337847343,1726151441967,-500.0,0.00016438,2]
[337847345,1726151441977,-500.0,0.00016438,2]
[337847347,1726151441987,-500.0,0.00016438,2]
[337847349,1726151441998,-500.0,0.00016438,2]
[337847351,1726151442008,-922.42,0.00016438,2]
[337847353,1726151442018,-500.0,0.00016438,2]
[337847355,1726151442031,-500.0,0.00016438,2]
[337847357,1726151442041,-502.75,0.00016438,2]
[337847359,1726151442051,-504.4238808,0.00016438,2]
[337847360,1726151442060,-500.0,0.00016438,2]
[337847361,1726151442071,-187.36790211,0.00016438,2]
[337847362,1726151442080,-500.0,0.00016438,2]
[337847363,1726151442091,-500.0,0.00016438,2]
[337847364,1726151442101,-500.0,0.00016438,2]
[337847365,1726151442111,-500.0,0.00016438,2]
[337847366,1726151442125,-500.0,0.00016438,2]
[337847367,1726151442135,-500.0,0.00016438,2]
[337847368,1726151442145,-500.0,0.00016438,2]
[337847369,1726151442156,-500.0,0.00016438,2]
[337847370,1726151442166,-500.0,0.00016438,2]
[337847371,1726151442176,-852.88,0.00016438,2]
[337847372,1726151442185,-500.0,0.00016438,2]
[337847373,1726151442196,-500.0,0.00016438,2]
[337847374,1726151442208,-500.0,0.00016438,2]
[337847375,1726151442218,-493.75114129,0.00016438,2]
[337847376,1726151442229,-500.0,0.00016438,2]
[337847377,1726151442239,-500.0,0.00016438,2]
[337847378,1726151442250,-500.0,0.00016438,2]
[337847379,1726151442259,-500.0,0.00016438,2]
[337847380,1726151442270,-500.0,0.00016438,2]
[337847381,1726151442280,-500.0,0.00016438,2]
[337847382,1726151442290,-500.0,0.00016438,2]
[337847383,1726151442300,-754.88,0.00016438,2]
[337847384,1726151442310,-500.0,0.00016438,2]
[337847386,1726151442320,-500.0,0.00016438,2]
[337847387,1726151442330,-500.0,0.00016438,2]
[337847389,1726151442341,-500.0,0.00016438,2]
[337847391,1726151442350,-500.0,0.00016438,2]
[337847394,1726151442362,-945.9,0.00016438,2]
[337847396,1726151442372,-635.23,0.00016438,2]
[337847398,1726151442382,-500.0,0.00016438,2]
[337847400,1726151442391,-500.0,0.00016438,2]
[337847402,1726151442400,-500.0,0.00016438,2]
[337847404,1726151442410,-500.0,0.00016438,2]
[337847406,1726151442419,-500.0,0.00016438,2]
[337847408,1726151442429,-500.0,0.00016438,2]
[337847410,1726151442442,-500.0,0.00016438,2]
[337847412,1726151442453,-500.0,0.00016438,2]
[337847414,1726151442463,-500.0,0.00016438,2]
[337847416,1726151442472,-500.0,0.00016438,2]
[337847417,1726151442482,-502.75758348,0.00016438,2]
[337847420,1726151442493,-511.72419072,0.00016438,2]
[337847421,1726151442503,-500.0,0.00016438,2]
[337847424,1726151442512,-500.0,0.00016438,2]
[337847426,1726151442521,-500.0,0.00016438,2]
[337847428,1726151442531,-500.0,0.00016438,2]
[337847430,1726151442541,-500.0,0.00016438,2]
[337847432,1726151442551,-500.0,0.00016438,2]
[337847434,1726151442564,-845.73,0.00016438,2]
[337847436,1726151442574,-500.0,0.00016438,2]
[337847438,1726151442583,-500.0,0.00016438,2]
[337847441,1726151442600,-1009.61,0.00016438,2]
[337847443,1726151442610,-878.3,0.00016438,2]
[337847445,1726151442620,-500.0,0.00016438,2]
[337847447,1726151442631,-500.0,0.00016438,2]
[337847450,1726151442640,-500.0,0.00016438,2]
[337847453,1726151442651,-747.08,0.00016438,2]
[337847456,1726151442661,-523.54,0.00016438,2]
[337847459,1726151442671,-500.0,0.00016438,2]
[337847462,1726151442682,-705.43,0.00016438,2]
[337847465,1726151442693,-668.81,0.00016438,2]
[337847469,1726151442703,-500.0,0.00016438,2]
[337847472,1726151442713,-818.89,0.00016438,2]
[337847475,1726151442723,-500.0,0.00016438,2]
[337847477,1726151442733,-7873.75,0.00016438,2]
[337847481,1726151442743,-500.0,0.00016438,2]
[337847484,1726151442753,-500.0,0.00016438,2]
[337847487,1726151442763,-500.0,0.00016438,2]
[337847489,1726151442772,-521.87,0.00016438,2]
[337847492,1726151442782,-500.0,0.00016438,2]
[337847495,1726151442792,-678.08,0.00016438,2]
[337847498,1726151442802,-807.9,0.00016438,2]
[337847500,1726151442813,-500.0,0.00016438,2]
[337847502,1726151442825,-500.0,0.00016438,2]
[337847504,1726151442834,-500.0,0.00016438,2]
[337847507,1726151442845,-500.0,0.00016438,2]
[337847509,1726151442855,-500.0,0.00016438,2]
[337847511,1726151442867,-589.99,0.00016438,2]
[337847513,1726151442877,-695.08,0.00016438,2]
[337847515,1726151442888,-756.66,0.00016438,2]
[337847517,1726151442898,-500.0,0.00016438,2]
[337847519,1726151442908,-500.0,0.00016438,2]
[337847521,1726151442918,-500.0,0.00016438,2]
[337847524,1726151442928,-195.94610996,0.00016438,2]
[337847527,1726151442939,-500.0,0.00016438,2]
[337847529,1726151442949,-986.51,0.00016438,2]
[337847531,1726151442959,-500.0,0.00016438,2]
[337847533,1726151442970,-500.0,0.00016438,2]
[337847535,1726151442981,-500.0,0.00016438,2]
[337847537,1726151442991,-500.0,0.00016438,2]
[337847539,1726151443001,-500.0,0.00016438,2]
[337847541,1726151443011,-719.79,0.00016438,2]
[337847543,1726151443021,-500.0,0.00016438,2]
[337847545,1726151443031,-500.0,0.00016438,2]
[337847547,1726151443042,-500.0,0.00016438,2]
[337847549,1726151443052,-500.0,0.00016438,2]
[337847551,1726151443062,-10888.08,0.00016438,2]
[337847554,1726151443073,-500.0,0.00016438,2]
[337847556,1726151443083,-500.0,0.00016438,2]
[337847558,1726151443094,-500.0,0.00016438,2]
[337847560,1726151443104,-500.0,0.00016438,2]
[337847562,1726151443114,-500.0,0.00016438,2]
[337847564,1726151443126,-646.31223111,0.00016438,2]
[337847566,1726151443135,-500.0,0.00016438,2]
[337847568,1726151443144,-898.52,0.00016438,2]
[337847570,1726151443155,-500.0,0.00016438,2]
[337847572,1726151443165,-500.0,0.00016438,2]
[337847574,1726151443174,-500.0,0.00016438,2]
[337847576,1726151443184,-500.0,0.00016438,2]
[337847579,1726151443198,-500.0,0.00016438,2]
[337847581,1726151443209,-500.59499031,0.00016438,2]
[337847583,1726151443220,-585.5,0.00016438,2]
[337847585,1726151443230,-500.0,0.00016438,2]
[337847587,1726151443241,-643.33,0.00016438,2]
[337847589,1726151443251,-500.0,0.00016438,2]
[337847591,1726151443261,-648.08,0.00016438,2]
[337847593,1726151443271,-500.0,0.00016438,2]
[337847595,1726151443281,-6017.14,0.00016438,2]
[337847597,1726151443291,-500.0,0.00016438,2]
[337847599,1726151443301,-500.0,0.00016438,2]
[337847602,1726151443312,-500.0,0.00016438,2]
[337847604,1726151443322,-776.61,0.00016438,2]
[337847606,1726151443332,-600.39,0.00016438,2]
[337847608,1726151443343,-500.0,0.00016438,2]
[337847611,1726151443353,-500.0,0.00016438,2]
[337847614,1726151443363,-621.96,0.00016438,2]
[337847616,1726151443372,-500.0,0.00016438,2]
[337847619,1726151443382,-500.0,0.00016438,2]
[337847622,1726151443393,-614.63,0.00016438,2]
[337847624,1726151443404,-500.0,0.00016438,2]
[337847626,1726151443415,-802.76,0.00016438,2]
[337847629,1726151443426,-1132.5,0.00016438,2]
[337847631,1726151443436,-500.0,0.00016438,2]
[337847633,1726151443446,-755.1,0.00016438,2]
[337847635,1726151443456,-1976.1,0.00016438,2]
[337847637,1726151443467,-500.0,0.00016438,2]
[337847639,1726151443477,-500.0,0.00016438,2]
[337847641,1726151443487,-772.46,0.00016438,2]
[337847643,1726151443498,-500.0,0.00016438,2]
[337847645,1726151443508,-503.21930254,0.00016438,2]
[337847647,1726151443519,-219.65621999,0.00016438,2]
[337847649,1726151443529,-500.0,0.00016438,2]
[337847651,1726151443539,-500.0,0.00016438,2]
[337847653,1726151443549,-1013.08,0.00016438,2]
[337847655,1726151443560,-500.0,0.00016438,2]
[337847657,1726151443570,-500.0,0.00016438,2]
[337847660,1726151443581,-500.0,0.00016438,2]
[337847661,1726151443590,-798.12,0.00016438,2]
[337847663,1726151443599,-500.0,0.00016438,2]
[337847665,1726151443608,-789.17,0.00016438,2]
[337847668,1726151443620,-500.0,0.00016438,2]
[337847670,1726151443630,-500.0,0.00016438,2]
[337847672,1726151443641,-675.77,0.00016438,2]
[337847674,1726151443651,-500.0,0.00016438,2]
[337847676,1726151443663,-500.0,0.00016438,2]
[337847678,1726151443674,-780.82,0.00016438,2]
[337847680,1726151443683,-500.0,0.00016438,2]
[337847682,1726151443694,-500.0,0.00016438,2]
[337847685,1726151443704,-500.0,0.00016438,2]
[337847687,1726151443717,-500.0,0.00016438,2]
[337847689,1726151443727,-500.0,0.00016438,2]
[337847691,1726151443737,-720.13,0.00016438,2]
[337847693,1726151443748,-505.51201439,0.00016438,2]
[337847695,1726151443759,-7160.63,0.00016438,2]
[337847698,1726151443770,-504.87165085,0.00016438,2]
[337847700,1726151443780,-4184.03,0.00016438,2]
[337847702,1726151443791,-647.19344309,0.00016438,2]
[337847704,1726151443801,-12371.0,0.00016438,2]
[337847706,1726151443811,-500.0,0.00016438,2]
[337847708,1726151443822,-680.33,0.00016438,2]
[337847710,1726151443831,-765.82,0.00016438,2]
[337847712,1726151443842,-702.61,0.00016438,2]
[337847714,1726151443853,-1333.34,0.00016438,2]
[337847716,1726151443863,-632.6019476,0.00016438,2]
[337847718,1726151443873,-500.0,0.00016438,2]
[337847720,1726151443883,-518.51000873,0.00016438,2]
[337847722,1726151443893,-592.33,0.00016438,2]
[337847724,1726151443903,-500.0,0.00016438,2]
[337847727,1726151443915,-551.44,0.00016438,2]
[337847729,1726151443926,-1860.89,0.00016438,2]
[337847730,1726151443935,-538.57,0.00016438,2]
[337847731,1726151443945,-5539.81,0.00016438,2]
[337847732,1726151443956,-500.0,0.00016438,2]
[337847733,1726151443965,-500.0,0.00016438,2]
[337847734,1726151443975,-856.78,0.00016438,2]
[337847735,1726151443986,-12580.55,0.00016438,2]
[337847736,1726151443999,-510.91589276,0.00016438,2]
[337847737,1726151444010,-500.0,0.00016438,2]
[337847738,1726151444022,-500.0,0.00016438,2]
[337847739,1726151444032,-543.03286653,0.00016438,2]
[337847740,1726151444042,-902.87,0.00016438,2]
[337847741,1726151444053,-500.0,0.00016438,2]
[337847742,1726151444062,-631.8683526,0.00016438,2]
[337847743,1726151444072,-500.0,0.00016438,2]
[337847744,1726151444094,-915.05,0.00016438,2]
[337847745,1726151444106,-500.0,0.00016438,2]
[337847746,1726151444118,-500.0,0.00016438,2]
[337847747,1726151444132,-856.28,0.00016438,2]
[337847748,1726151444142,-500.0,0.00016438,2]
[337847749,1726151444152,-500.0,0.00016438,2]
[337847750,1726151444162,-500.0,0.00016438,2]
[337847751,1726151444173,-500.0,0.00016438,2]
[337847752,1726151444184,-579.39928898,0.00016438,2]
[337847753,1726151444194,-500.0,0.00016438,2]
[337847754,1726151444204,-500.0,0.00016438,2]
[337847755,1726151444214,-500.0,0.00016438,2]
[337847756,1726151444224,-500.0,0.00016438,2]
[337847757,1726151444234,-500.0,0.00016438,2]
[337847758,1726151444245,-8698.2889674,0.00016443,2]
[337847759,1726151444255,-1063.09337083,0.00016443,2]
[337847760,1726151444265,-500.0,0.00016473,2]
[337847762,1726151444275,-500.0,0.00016473,2]
[337847764,1726151444286,-500.0,0.00016473,2]
[337847766,1726151444298,-549.94975505,0.00016473,2]
[337847767,1726151444309,-200.15239048,0.000165,2]
[337847768,1726151444319,-158.59477671,0.00016514,2]
[337847769,1726151444330,-500.0,0.00016534,7]
[337847771,1726151444340,-500.0,0.00016534,7]
[337847773,1726151444350,-426.75,0.00016534,7]
[337847775,1726151444360,-500.0,0.00016534,7]
[337847776,1726151444371,-500.0,0.00016534,7]
[337847778,1726151444381,-500.0,0.00016534,7]
[337847780,1726151444391,-500.0,0.00016534,7]
[337847782,1726151444404,-500.0,0.00016534,7]
[337847785,1726151444414,-500.0,0.00016534,7]
[337847787,1726151444425,-500.0,0.00016534,7]
[337847789,1726151444435,-500.0,0.00016534,7]
[337847791,1726151444446,-500.0,0.00016534,7]
[337847792,1726151444456,-500.0,0.00016534,7]
[337847794,1726151444466,-474.96,0.00016534,7]
[337847796,1726151444475,-5538.60672334,0.0001658,2]
[337847813,1726151444638,-500.0,0.00016438,2]
[337847815,1726151444648,-3159.68224406,0.0001658,2]
[337847817,1726151444658,-1063.09337083,0.0001658,2]
[337847819,1726151444667,-500.45530025,0.00016589,2]
[337847930,1726151446306,-500.0,0.00016438,2]
[337847931,1726151446316,-500.0,0.00016438,2]
[337847932,1726151446329,-500.0,0.00016438,2]
[337847933,1726151446340,-8197.83366715,0.00016589,2]
[337847934,1726151446350,-1063.09337083,0.00016589,2]
[337847935,1726151446360,-8698.2889674,0.000166,2]
[337847936,1726151446370,-1063.09337083,0.000166,2]
[337847937,1726151446379,-158.59477671,0.00016602,2]
[337847938,1726151446390,-50519.998,0.0001661,2]
[337847939,1726151446402,-154.42,0.0001661,2]
[337847940,1726151446413,-524.0,0.0001661,2]
[337847941,1726151446423,-18684.1428048,0.00016682,3]
[337847942,1726151446433,-8698.2889674,0.00016682,2]
[337847943,1726151446443,-1063.09337083,0.00016682,2]
[337847944,1726151446455,-34793.1558696,0.00016702,2]
[337847945,1726151446465,-4252.37348332,0.00016702,2]
[337847946,1726151446474,-155.0,0.0001671,2]
[337847947,1726151446484,-500.0,0.00016712,2]
[337847948,1726151446496,-500.0,0.00016712,2]
[337847949,1726151446506,-500.0,0.00016712,2]
[337847950,1726151446516,-500.0,0.00016712,2]
[337847951,1726151446526,-257.787456,0.00016712,2]
[337847952,1726151446536,-500.0,0.00016712,2]
[337847953,1726151446545,-500.0,0.00016712,2]
[337847954,1726151446555,-500.0,0.00016712,2]
[337847955,1726151446566,-500.0,0.00016712,2]
[337847956,1726151446575,-500.0,0.00016712,2]
[337847957,1726151446585,-500.0,0.00016712,2]
[337847958,1726151446597,-500.0,0.00016712,2]
[337847959,1726151446608,-500.0,0.00016712,2]
[337847960,1726151446620,-500.0,0.00016712,2]
[337847961,1726151446630,-500.0,0.00016712,2]
[337847962,1726151446641,-365.24,0.00016712,2]
[337847963,1726151446652,-500.0,0.00016712,2]
[337847964,1726151446662,-500.0,0.00016712,2]
[337847965,1726151446672,-500.0,0.00016712,2]
[337847966,1726151446682,-500.0,0.00016712,2]
[337847967,1726151446691,-500.0,0.00016712,2]
[337847968,1726151446702,-500.0,0.00016712,2]
[337847969,1726151446712,-525.31,0.00016712,2]
[337847970,1726151446722,-500.0,0.00016712,2]
[337847971,1726151446733,-500.0,0.00016712,2]
[337847972,1726151446745,-500.0,0.00016712,2]
[337847973,1726151446754,-500.0,0.00016712,2]
[337847974,1726151446764,-500.0,0.00016712,2]
[337847975,1726151446775,-200.0,0.00016712,2]
[337847976,1726151446786,-500.0,0.00016712,2]
[337847977,1726151446796,-541.84,0.00016712,2]
[337847978,1726151446807,-500.0,0.00016712,2]
[337847979,1726151446817,-500.0,0.00016712,2]
[337847980,1726151446829,-398.31063197,0.00016712,2]
[337848035,1726151713081,305.468567,0.00015483,2]
[337848036,1726151747802,500.0,0.00013699,2]
[337848037,1726151876417,963.941433,0.00015459,2]
[337848038,1726151994378,159.8128052,0.00015506,2]
[337848041,1726152042186,1000.0,0.00015,7]
[337848044,1726152084543,519.40748838,0.00028,120]
[337848045,1726152102312,1000.0,0.00016,7]
[337848046,1726152136779,1500.0,0.00026,60]
[337848047,1726152162672,1018.2894,0.00016,7]
[337848049,1726152275113,500.0,0.00013699,2]
[337848064,1726152345130,-192.70172254,0.00016136,2]
[337848065,1726152345152,-516.79112436,0.00016236,2]
[337848066,1726152353126,-1131.35887565,0.00016236,2]
[337848067,1726152353148,-1109.13212916,0.00016328,2]
[337848068,1726152427103,-166.48976496,0.00016237,2]
[337848069,1726152427128,-140.9629227,0.00016328,2]
[337848070,1726152443101,-386.12114808,0.00016328,2]
[337848071,1726152446089,-871.24722865,0.00016328,2]
[337848072,1726152446110,-158.59477671,0.00016337,2]
[337848073,1726152446136,-632.4912975,0.00016338,2]
[337848074,1726152446157,-802.81528134,0.00016338,2]
[337848075,1726152454111,-197.18471866,0.00016338,2]
[337848076,1726152454132,-500.0,0.00016394,2]
[337848077,1726152454154,-300.0,0.00016417,2]
[337848078,1726152454182,-1352.55056859,0.00016418,2]
[337848151,1726152632248,-2281.41115976,0.00016328,2]
[337848153,1726152632258,-158.59477671,0.00016338,2]
[337848155,1726152632270,-300.0,0.00016426,2]
[337848157,1726152632283,-300.0,0.00016426,2]
[337848159,1726152632292,-500.0,0.00016427,2]
[337848160,1726152632302,-500.0,0.00016427,2]
[337848162,1726152632312,-500.0,0.00016427,2]
[337848164,1726152632322,-500.0,0.00016427,2]
[337848166,1726152632332,-500.0,0.00016427,2]
[337848168,1726152632342,-500.0,0.00016427,2]
[337848171,1726152632351,-533.63507818,0.00016427,2]
[337848173,1726152632362,-500.0,0.00016427,2]
[337848175,1726152632371,-500.0,0.00016427,2]
[337848176,1726152632381,-500.0,0.00016427,2]
[337848178,1726152632392,-500.0,0.00016427,2]
[337848180,1726152632402,-500.0,0.00016427,2]
[337848182,1726152632411,-500.0,0.00016427,2]
[337848184,1726152632421,-547.03649892,0.00016427,2]
[337848186,1726152632430,-500.0,0.00016427,2]
[337848188,1726152632439,-500.0,0.00016427,2]
[337848190,1726152632449,-547.03649892,0.00016427,2]
[337848191,1726152632459,-500.0,0.00016427,2]
[337848192,1726152632468,-500.0,0.00016427,2]
[337848193,1726152632478,-547.03649892,0.00016427,2]
[337848194,1726152632487,-500.0,0.00016427,2]
[337848195,1726152632497,-500.0,0.00016427,2]
[337848196,1726152632507,-547.03649892,0.00016427,2]
[337848197,1726152632520,-500.0,0.00016427,2]
[337848198,1726152632530,-547.03649892,0.00016427,2]
[337848199,1726152632539,-407.34238525,0.00016427,2]
[337848200,1726152632551,-92.65761475,0.00016427,2]
[337848201,1726152632561,-500.0,0.00016427,2]
[337848202,1726152632570,-500.0,0.00016427,2]
[337848203,1726152632582,-176.75238525,0.00016427,2]
[337848211,1726152638293,-370.28411367,0.00016427,2]
[337848212,1726152638304,-500.0,0.00016427,2]
[337848213,1726152638313,-500.0,0.00016427,2]
[337848214,1726152638322,-547.03649892,0.00016427,2]
[337848215,1726152638331,-500.0,0.00016427,2]
[337848216,1726152638342,-500.0,0.00016427,2]
[337848217,1726152638351,-547.03649892,0.00016427,2]
[337848218,1726152638361,-500.0,0.00016427,2]
[337848219,1726152638376,-500.0,0.00016427,2]
[337848220,1726152638386,-547.03649892,0.00016427,2]
[337848221,1726152638397,-500.0,0.00016427,2]
[337848222,1726152638407,-359.46472162,0.00016427,2]
[337848223,1726152638418,-276.11447647,0.00016427,2]
[337848224,1726152638427,-159.42678564,0.00016427,2]
[337848228,1726152638438,-500.0,0.00016427,2]
[337848230,1726152638449,-500.0,0.00016427,2]
[337848231,1726152638460,-193.75721117,0.00016427,2]
[337848232,1726152638470,-6279.02963055,0.00016428,2]
[337848233,1726152638487,-37898.34226045,0.00016428,2]
[337848234,1726152638498,-231925.53704,0.00016428,2]
[337848235,1726152638510,-33440.85363792,0.0001643,2]
[337848236,1726152638521,-500.0,0.00016438,2]
[337848237,1726152638531,-500.0,0.00016438,2]
[337848238,1726152638540,-500.0,0.00016438,2]
[337848239,1726152638549,-500.0,0.00016438,2]
[337848240,1726152638559,-500.0,0.00016438,2]
[337848241,1726152638569,-500.0,0.00016438,2]
[337848242,1726152638580,-500.0,0.00016438,2]
[337848243,1726152638590,-500.0,0.00016438,2]
[337848244,1726152638600,-500.0,0.00016438,2]
[337848245,1726152638612,-500.0,0.00016438,2]
[337848246,1726152638622,-500.0,0.00016438,2]
[337848247,1726152638632,-740.74,0.00016438,2]
[337848248,1726152638641,-500.0,0.00016438,2]
[337848249,1726152638651,-500.0,0.00016438,2]
[337848250,1726152638661,-521.75749717,0.00016438,2]
[337848251,1726152638671,-500.0,0.00016438,2]
[337848252,1726152638682,-500.0,0.00016438,2]
[337848253,1726152638692,-500.0,0.00016438,2]
[337848254,1726152638701,-500.0,0.00016438,2]
[337848255,1726152638711,-500.0,0.00016438,2]
[337848256,1726152638720,-500.0,0.00016438,2]
[337848257,1726152638730,-501.78523145,0.00016438,2]
[337848258,1726152638739,-500.0,0.00016438,2]
[337848259,1726152638749,-502.52196706,0.00016438,2]
[337848260,1726152638759,-383.97652021,0.00016438,2]
[337848261,1726152638769,-500.0,0.00016438,2]
[337848262,1726152638783,-500.0,0.00016438,2]
[337848263,1726152638795,-500.0,0.00016438,2]
[337848264,1726152638805,-500.0,0.00016438,2]
[337848265,1726152638814,-500.0,0.00016438,2]
[337848266,1726152638824,-500.0,0.00016438,2]
[337848267,1726152638833,-782.0,0.00016438,2]
[337848268,1726152638842,-500.0,0.00016438,2]
[337848269,1726152638851,-439.53402322,0.00016438,2]
[337848270,1726152638861,-500.0,0.00016438,2]
[337848271,1726152638871,-500.0,0.00016438,2]
[337848272,1726152638881,-436.86837749,0.00016438,2]
[337848273,1726152638890,-500.0,0.00016438,2]
[337848274,1726152638900,-500.0,0.00016438,2]
[337848275,1726152638909,-500.0,0.00016438,2]
[337848276,1726152638919,-500.0,0.00016438,2]
[337848277,1726152638928,-500.0,0.00016438,2]
[337848278,1726152638937,-644.20839796,0.00016438,2]
[337848279,1726152638947,-500.0,0.00016438,2]
[337848280,1726152638957,-500.0,0.00016438,2]
[337848281,1726152638966,-500.0,0.00016438,2]
[337848282,1726152638975,-502.57633407,0.00016438,2]
[337848283,1726152638984,-500.0,0.00016438,2]
[337848284,1726152638994,-500.0,0.00016438,2]
[337848285,1726152639003,-505.08043448,0.00016438,2]
[337848286,1726152639012,-500.0,0.00016438,2]
[337848287,1726152639025,-500.0,0.00016438,2]
[337848288,1726152639034,-500.0,0.00016438,2]
[337848289,1726152639043,-500.0,0.00016438,2]
[337848290,1726152639053,-500.0,0.00016438,2]
[337848291,1726152639062,-500.0,0.00016438,2]
[337848292,1726152639071,-500.0,0.00016438,2]
[337848293,1726152639080,-500.0,0.00016438,2]
[337848294,1726152639090,-500.0,0.00016438,2]
[337848295,1726152639099,-500.0,0.00016438,2]
[337848296,1726152639109,-500.0,0.00016438,2]
[337848297,1726152639119,-500.0,0.00016438,2]
[337848298,1726152639128,-500.0,0.00016438,2]
[337848299,1726152639138,-500.0,0.00016438,2]
[337848300,1726152639147,-500.0,0.00016438,2]
[337848301,1726152639156,-500.0,0.00016438,2]
[337848302,1726152639166,-500.0,0.00016438,2]
[337848303,1726152639176,-504.60527564,0.00016438,2]